[Event "Titled Tuesday Blitz May 30 Early 2023"]
[White "Mendonca, Leon Luke"]
[Black "Hirneise, Jens"]
[WhiteFideId "35028561"]
[BlackFideId "24614734"]
[WhiteElo "2464"]
[BlackElo "2345"]
[Result "1-0"]
[Round "01"]
[TimeControl "180+2"]
[Date "2023.05.30"]
[WhiteClock "0:01:13"]
[BlackClock "0:00:42"]

1. e4 {[%clk 0:02:59]}  e5 {[%clk 0:02:56]} 2. Nf3 {[%clk 0:02:58]}  Nc6 {[%clk 0:02:55]} 3. Bc4 {[%clk 0:02:57]}  Bc5 {[%clk 0:02:55]} 4. d3 {[%clk 0:02:56]}  d6 {[%clk 0:02:52]} 5. h3 {[%clk 0:02:56]}  a6 {[%clk 0:02:51]} 6. c3 {[%clk 0:02:56]}  Ba7 {[%clk 0:02:50]} 7. Nbd2 {[%clk 0:02:56]}  Nf6 {[%clk 0:02:49]} 8. Nf1 {[%clk 0:02:56]}  O-O {[%clk 0:02:49]} 9. Be3 {[%clk 0:02:55]}  d5 {[%clk 0:02:44]} 10. exd5 {[%clk 0:02:52]}  Nxd5 {[%clk 0:02:45]} 11. Bxa7 {[%clk 0:02:51]}  Rxa7 {[%clk 0:02:45]} 12. Ng3 {[%clk 0:02:20]}  b5 {[%clk 0:02:40]} 13. Bxd5 {[%clk 0:02:12]}  Qxd5 {[%clk 0:02:41]} 14. O-O {[%clk 0:02:13]}  Rd8 {[%clk 0:02:41]} 15. Re1 {[%clk 0:02:10]}  Qxd3 {[%clk 0:02:25]} 16. Qxd3 {[%clk 0:02:09]}  Rxd3 {[%clk 0:02:26]} 17. Nxe5 {[%clk 0:02:08]}  Nxe5 {[%clk 0:02:27]} 18. Rxe5 {[%clk 0:02:09]}  Be6 {[%clk 0:02:28]} 19. Ne4 {[%clk 0:02:06]}  Rd5 {[%clk 0:02:23]} 20. Rxd5 {[%clk 0:02:03]}  Bxd5 {[%clk 0:02:24]} 21. Nc5 {[%clk 0:02:04]}  g5 {[%clk 0:02:02]} 22. a4 {[%clk 0:02:03]}  c6 {[%clk 0:01:45]} 23. axb5 {[%clk 0:01:55]}  cxb5 {[%clk 0:01:46]} 24. Rxa6 {[%clk 0:01:54]}  Re7 {[%clk 0:01:47]} 25. Rd6 {[%clk 0:01:51]}  Re1+ {[%clk 0:01:33]} 26. Kh2 {[%clk 0:01:51]}  Ba2 {[%clk 0:01:20]} 27. Rd2 {[%clk 0:01:33]}  Kg7 {[%clk 0:01:12]} 28. f3 {[%clk 0:01:33]}  h5 {[%clk 0:01:07]} 29. Kg3 {[%clk 0:01:33]}  h4+ {[%clk 0:01:04]} 30. Kf2 {[%clk 0:01:33]}  Rb1 {[%clk 0:01:01]} 31. Ne4 {[%clk 0:01:28]}  f6 {[%clk 0:00:59]} 32. Nd6 {[%clk 0:01:28]}  Bc4 {[%clk 0:00:55]} 33. Nxc4 {[%clk 0:01:28]}  bxc4 {[%clk 0:00:55]} 34. Ke3 {[%clk 0:01:29]}  Kg6 {[%clk 0:00:51]} 35. Kd4 {[%clk 0:01:26]}  Kf5 {[%clk 0:00:51]} 36. Kxc4 {[%clk 0:01:26]}  Kf4 {[%clk 0:00:52]} 37. b4 {[%clk 0:01:26]}  f5 {[%clk 0:00:52]} 38. b5 {[%clk 0:01:26]}  Ke3 {[%clk 0:00:42]} 39. Ra2 {[%clk 0:01:13]} 1-0


[Site "https://www.chess.com"]

[Event "Titled Tuesday Blitz May 30 Early 2023"]
[White "Ryan, Joseph"]
[Black "Kravtsiv, Martyn"]
[WhiteFideId "2500426"]
[BlackFideId "14113147"]
[WhiteElo "2455"]
[BlackElo "2695"]
[Result "0-1"]
[Round "01"]
[TimeControl "180+2"]
[Date "2023.05.30"]
[WhiteClock "0:00:37"]
[BlackClock "0:01:04"]

1. d4 {[%clk 0:02:58]}  e6 {[%clk 0:02:59]} 2. e4 {[%clk 0:02:56]}  d5 {[%clk 0:02:58]} 3. Nc3 {[%clk 0:02:55]}  Bb4 {[%clk 0:02:56]} 4. e5 {[%clk 0:02:45]}  Ne7 {[%clk 0:02:55]} 5. a3 {[%clk 0:02:45]}  Bxc3+ {[%clk 0:02:54]} 6. bxc3 {[%clk 0:02:46]}  c5 {[%clk 0:02:54]} 7. a4 {[%clk 0:02:42]}  Nbc6 {[%clk 0:02:49]} 8. Nf3 {[%clk 0:02:42]}  Qc7 {[%clk 0:02:48]} 9. Bd3 {[%clk 0:02:37]}  Bd7 {[%clk 0:02:34]} 10. O-O {[%clk 0:02:33]}  O-O-O {[%clk 0:02:23]} 11. Ba3 {[%clk 0:02:30]}  c4 {[%clk 0:02:17]} 12. Be2 {[%clk 0:02:24]}  Ng6 {[%clk 0:02:07]} 13. Qb1 {[%clk 0:02:19]}  b6 {[%clk 0:02:01]} 14. Bd6 {[%clk 0:02:14]}  Qb7 {[%clk 0:02:01]} 15. a5 {[%clk 0:02:13]}  Nxa5 {[%clk 0:01:57]} 16. Rxa5 {[%clk 0:02:13]}  bxa5 {[%clk 0:01:56]} 17. Qa2 {[%clk 0:02:13]}  Nf4 {[%clk 0:01:51]} 18. Bxc4 {[%clk 0:01:52]}  dxc4 {[%clk 0:01:46]} 19. Qxc4+ {[%clk 0:01:51]}  Bc6 {[%clk 0:01:36]} 20. d5 {[%clk 0:01:32]}  Nxd5 {[%clk 0:01:34]} 21. Nd4 {[%clk 0:01:30]}  Kd7 {[%clk 0:01:35]} 22. Ba3 {[%clk 0:01:24]}  Rc8 {[%clk 0:01:17]} 23. Qc5 {[%clk 0:01:23]}  Ke8 {[%clk 0:01:17]} 24. Qd6 {[%clk 0:01:13]}  Qc7 {[%clk 0:01:07]} 25. Qc5 {[%clk 0:00:37]}  Ba4 {[%clk 0:01:04]} 0-1


[Site "https://www.chess.com"]

[Event "Titled Tuesday Blitz May 30 Early 2023"]
[White "Koutlas, Nikolaos"]
[Black "Fier, Alexandr"]
[WhiteFideId "25827138"]
[BlackFideId "2107139"]
[WhiteElo "2215"]
[BlackElo "2610"]
[Result "0-1"]
[Round "01"]
[TimeControl "180+2"]
[Date "2023.05.30"]
[WhiteClock "0:00:00"]
[BlackClock "0:01:38"]

1. Nf3 {[%clk 0:02:45]}  Nf6 {[%clk 0:03:00]} 2. g3 {[%clk 0:02:43]}  d6 {[%clk 0:02:59]} 3. Bg2 {[%clk 0:02:43]}  e5 {[%clk 0:02:57]} 4. d4 {[%clk 0:02:43]}  e4 {[%clk 0:02:57]} 5. Nfd2 {[%clk 0:02:43]}  d5 {[%clk 0:02:57]} 6. c4 {[%clk 0:02:43]}  c6 {[%clk 0:02:58]} 7. Nc3 {[%clk 0:02:43]}  Be7 {[%clk 0:02:55]} 8. O-O {[%clk 0:02:42]}  O-O {[%clk 0:02:55]} 9. f3 {[%clk 0:02:40]}  exf3 {[%clk 0:02:56]} 10. Nxf3 {[%clk 0:02:35]}  dxc4 {[%clk 0:02:55]} 11. e4 {[%clk 0:02:35]}  Bg4 {[%clk 0:02:55]} 12. Be3 {[%clk 0:02:34]}  Nbd7 {[%clk 0:02:54]} 13. a4 {[%clk 0:02:31]}  a5 {[%clk 0:02:52]} 14. Qe2 {[%clk 0:02:26]}  Nb6 {[%clk 0:02:51]} 15. Rad1 {[%clk 0:02:24]}  Bh5 {[%clk 0:02:45]} 16. h3 {[%clk 0:01:40]}  Re8 {[%clk 0:02:44]} 17. Qf2 {[%clk 0:01:39]}  Bg6 {[%clk 0:02:42]} 18. d5 {[%clk 0:01:36]}  Nbd7 {[%clk 0:02:33]} 19. dxc6 {[%clk 0:00:29]}  bxc6 {[%clk 0:02:33]} 20. e5 {[%clk 0:00:15]}  Nd5 {[%clk 0:02:33]} 21. Nxd5 {[%clk 0:00:09]}  cxd5 {[%clk 0:02:34]} 22. Rxd5 {[%clk 0:00:09]}  Qc8 {[%clk 0:02:35]} 23. Rfd1 {[%clk 0:00:06]}  Nf8 {[%clk 0:02:35]} 24. Nd4 {[%clk 0:00:05]}  Rb8 {[%clk 0:02:35]} 25. Nb5 {[%clk 0:00:05]}  Ne6 {[%clk 0:02:35]} 26. Ba7 {[%clk 0:00:04]}  Rb7 {[%clk 0:02:31]} 27. Nd6 {[%clk 0:00:04]}  Bxd6 {[%clk 0:02:31]} 28. exd6 {[%clk 0:00:05]}  Rd7 {[%clk 0:02:29]} 29. Be3 {[%clk 0:00:04]}  Bd3 {[%clk 0:02:29]} 30. Rxa5 {[%clk 0:00:04]}  Rxd6 {[%clk 0:02:28]} 31. Rf5 {[%clk 0:00:03]}  Qd7 {[%clk 0:02:28]} 32. Rb5 {[%clk 0:00:03]}  Nd4 {[%clk 0:02:26]} 33. Rb7 {[%clk 0:00:03]}  Ne2+ {[%clk 0:01:45]} 34. Kh2 {[%clk 0:00:02]}  Qe6 {[%clk 0:01:44]} 35. Bc5 {[%clk 0:00:02]}  Rd7 {[%clk 0:01:42]} 36. Rb6 {[%clk 0:00:02]}  Qe5 {[%clk 0:01:41]} 37. a5 {[%clk 0:00:02]}  h5 {[%clk 0:01:38]} 38. a6 {[%clk 0:00:00]}  h4 {[%clk 0:01:38]} 0-1


[Site "https://www.chess.com"]

[Event "Titled Tuesday Blitz May 30 Early 2023"]
[White "Kukhmazov, Arsen"]
[Black "Fan_Of_Chucky"]
[WhiteFideId "24108260"]
[WhiteElo "2396"]
[BlackElo "2443"]
[Result "1-0"]
[Round "01"]
[TimeControl "180+2"]
[Date "2023.05.30"]
[WhiteClock "0:00:49"]
[BlackClock "0:00:04"]

1. d4 {[%clk 0:02:59]}  Nf6 {[%clk 0:02:53]} 2. c4 {[%clk 0:02:59]}  c5 {[%clk 0:02:53]} 3. d5 {[%clk 0:02:59]}  b5 {[%clk 0:02:54]} 4. Qc2 {[%clk 0:02:59]}  b4 {[%clk 0:02:53]} 5. e4 {[%clk 0:03:00]}  d6 {[%clk 0:02:46]} 6. f4 {[%clk 0:03:00]}  g6 {[%clk 0:02:45]} 7. Nf3 {[%clk 0:03:00]}  Bg7 {[%clk 0:02:45]} 8. e5 {[%clk 0:03:00]}  dxe5 {[%clk 0:02:46]} 9. fxe5 {[%clk 0:03:00]}  Ng4 {[%clk 0:02:46]} 10. Bd3 {[%clk 0:03:00]}  Nxe5 {[%clk 0:02:45]} 11. Nxe5 {[%clk 0:03:01]}  Bxe5 {[%clk 0:02:45]} 12. O-O {[%clk 0:03:01]}  O-O {[%clk 0:02:44]} 13. Nd2 {[%clk 0:03:02]}  Bd4+ {[%clk 0:02:37]} 14. Kh1 {[%clk 0:03:02]}  Nd7 {[%clk 0:02:31]} 15. Nf3 {[%clk 0:03:02]}  Bg7 {[%clk 0:02:31]} 16. Bf4 {[%clk 0:02:55]}  Nf6 {[%clk 0:02:17]} 17. Rae1 {[%clk 0:02:54]}  Re8 {[%clk 0:02:08]} 18. Ne5 {[%clk 0:02:35]}  Bd7 {[%clk 0:02:00]} 19. h3 {[%clk 0:02:32]}  a5 {[%clk 0:01:55]} 20. Qf2 {[%clk 0:02:32]}  Qc8 {[%clk 0:01:51]} 21. g4 {[%clk 0:02:30]}  Rf8 {[%clk 0:01:42]} 22. Bh2 {[%clk 0:02:27]}  a4 {[%clk 0:01:39]} 23. Bg1 {[%clk 0:01:43]}  Ra5 {[%clk 0:01:30]} 24. Re2 {[%clk 0:01:43]}  Be8 {[%clk 0:01:14]} 25. Rfe1 {[%clk 0:01:37]}  Qa8 {[%clk 0:00:55]} 26. Qg2 {[%clk 0:01:30]}  Qc8 {[%clk 0:00:31]} 27. Nf3 {[%clk 0:01:26]}  Ra7 {[%clk 0:00:17]} 28. Rxe7 {[%clk 0:01:26]}  Rxe7 {[%clk 0:00:18]} 29. Rxe7 {[%clk 0:01:26]}  Bd7 {[%clk 0:00:14]} 30. Ne5 {[%clk 0:01:22]}  Re8 {[%clk 0:00:10]} 31. d6 {[%clk 0:01:09]}  Rxe7 {[%clk 0:00:04]} 32. dxe7 {[%clk 0:01:10]}  Be6 {[%clk 0:00:05]} 33. Qc6 {[%clk 0:00:55]}  Qxc6+ {[%clk 0:00:03]} 34. Nxc6 {[%clk 0:00:56]}  Bd7 {[%clk 0:00:01]} 35. Ne5 {[%clk 0:00:54]}  Be8 {[%clk 0:00:01]} 36. Bxc5 {[%clk 0:00:54]}  Nd7 {[%clk 0:00:01]} 37. Nxd7 {[%clk 0:00:54]}  Bxd7 {[%clk 0:00:02]} 38. Bxb4 {[%clk 0:00:55]}  Bxb2 {[%clk 0:00:03]} 39. Be4 {[%clk 0:00:55]}  Be5 {[%clk 0:00:02]} 40. c5 {[%clk 0:00:55]}  f5 {[%clk 0:00:03]} 41. c6 {[%clk 0:00:55]}  Bc8 {[%clk 0:00:03]} 42. gxf5 {[%clk 0:00:56]}  Kf7 {[%clk 0:00:02]} 43. fxg6+ {[%clk 0:00:55]}  hxg6 {[%clk 0:00:03]} 44. Bxg6+ {[%clk 0:00:49]}  Kxg6 {[%clk 0:00:04]} 45. e8=Q+ {[%clk 0:00:49]} 1-0


[Site "https://www.chess.com"]

[Event "Titled Tuesday Blitz May 30 Early 2023"]
[White "Sai Han Thiha"]
[Black "Gorovets, Andrey"]
[WhiteFideId "13012290"]
[BlackFideId "13504037"]
[WhiteElo "1954"]
[BlackElo "2459"]
[Result "0-1"]
[Round "01"]
[TimeControl "180+2"]
[Date "2023.05.30"]
[WhiteClock "0:00:01"]
[BlackClock "0:00:13"]

1. d4 {[%clk 0:02:58]}  e6 {[%clk 0:02:59]} 2. c4 {[%clk 0:02:51]}  f5 {[%clk 0:02:59]} 3. Nf3 {[%clk 0:02:48]}  Nf6 {[%clk 0:03:00]} 4. Bf4 {[%clk 0:02:43]}  b6 {[%clk 0:02:59]} 5. e3 {[%clk 0:02:41]}  Bb7 {[%clk 0:02:55]} 6. Be2 {[%clk 0:02:27]}  g6 {[%clk 0:02:48]} 7. O-O {[%clk 0:02:25]}  Bg7 {[%clk 0:02:49]} 8. Nc3 {[%clk 0:02:25]}  O-O {[%clk 0:02:45]} 9. b3 {[%clk 0:01:41]}  d6 {[%clk 0:02:37]} 10. Rc1 {[%clk 0:01:42]}  Nbd7 {[%clk 0:02:36]} 11. h3 {[%clk 0:01:42]}  h6 {[%clk 0:02:29]} 12. b4 {[%clk 0:01:39]}  Ne4 {[%clk 0:02:25]} 13. Nxe4 {[%clk 0:01:39]}  fxe4 {[%clk 0:02:25]} 14. Nd2 {[%clk 0:01:35]}  Bxd4 {[%clk 0:01:54]} 15. Bxh6 {[%clk 0:01:34]}  Bg7 {[%clk 0:01:54]} 16. Bxg7 {[%clk 0:01:27]}  Kxg7 {[%clk 0:01:55]} 17. c5 {[%clk 0:01:06]}  bxc5 {[%clk 0:01:47]} 18. bxc5 {[%clk 0:01:06]}  Nxc5 {[%clk 0:01:45]} 19. Nb3 {[%clk 0:01:07]}  Nxb3 {[%clk 0:01:10]} 20. Qxb3 {[%clk 0:01:08]}  Bd5 {[%clk 0:00:56]} 21. Qc3+ {[%clk 0:01:07]}  Kg8 {[%clk 0:00:53]} 22. Qxc7 {[%clk 0:01:08]}  Bxa2 {[%clk 0:00:48]} 23. Bg4 {[%clk 0:00:31]}  Qxc7 {[%clk 0:00:22]} 24. Rxc7 {[%clk 0:00:30]}  Rf7 {[%clk 0:00:20]} 25. Rfc1 {[%clk 0:00:26]}  Rxc7 {[%clk 0:00:19]} 26. Rxc7 {[%clk 0:00:25]}  a5 {[%clk 0:00:19]} 27. Re7 {[%clk 0:00:21]}  a4 {[%clk 0:00:17]} 28. Bd1 {[%clk 0:00:03]}  a3 {[%clk 0:00:16]} 29. Rc7 {[%clk 0:00:02]}  Bc4 {[%clk 0:00:12]} 30. Rxc4 {[%clk 0:00:01]}  a2 {[%clk 0:00:12]} 31. Rc1 {[%clk 0:00:01]}  a1=Q {[%clk 0:00:13]} 32. Rxa1 {[%clk 0:00:01]}  Rxa1 {[%clk 0:00:13]} 0-1


[Site "https://www.chess.com"]

[Event "Titled Tuesday Blitz May 30 Early 2023"]
[White "Fiedorek, Michal"]
[Black "Fernandez Guillen, Ernesto J."]
[WhiteFideId "1199528"]
[BlackFideId "3512428"]
[WhiteElo "2135"]
[BlackElo "2429"]
[Result "0-1"]
[Round "01"]
[TimeControl "180+2"]
[Date "2023.05.30"]
[WhiteClock "0:00:05"]
[BlackClock "0:01:15"]

1. d4 {[%clk 0:02:56]}  Nf6 {[%clk 0:02:55]} 2. Nf3 {[%clk 0:02:56]}  g6 {[%clk 0:02:53]} 3. g3 {[%clk 0:02:56]}  Bg7 {[%clk 0:02:53]} 4. Bg2 {[%clk 0:02:56]}  O-O {[%clk 0:02:54]} 5. O-O {[%clk 0:02:56]}  d5 {[%clk 0:02:55]} 6. c4 {[%clk 0:02:54]}  c6 {[%clk 0:02:56]} 7. Nbd2 {[%clk 0:02:46]}  Nbd7 {[%clk 0:02:55]} 8. Qc2 {[%clk 0:02:44]}  Re8 {[%clk 0:02:54]} 9. b3 {[%clk 0:02:37]}  e5 {[%clk 0:02:38]} 10. dxe5 {[%clk 0:02:37]}  Nxe5 {[%clk 0:02:39]} 11. Nxe5 {[%clk 0:02:37]}  Rxe5 {[%clk 0:02:40]} 12. Nf3 {[%clk 0:02:19]}  Bf5 {[%clk 0:02:37]} 13. Qd1 {[%clk 0:02:17]}  Re8 {[%clk 0:02:32]} 14. Bb2 {[%clk 0:02:04]}  dxc4 {[%clk 0:02:32]} 15. bxc4 {[%clk 0:02:01]}  Qxd1 {[%clk 0:02:31]} 16. Raxd1 {[%clk 0:01:50]}  Rxe2 {[%clk 0:02:31]} 17. Bxf6 {[%clk 0:01:17]}  Bxf6 {[%clk 0:02:31]} 18. Nd4 {[%clk 0:01:12]}  Bxd4 {[%clk 0:02:30]} 19. Rxd4 {[%clk 0:01:12]}  Rxa2 {[%clk 0:02:31]} 20. g4 {[%clk 0:01:09]}  Be6 {[%clk 0:02:30]} 21. f4 {[%clk 0:01:09]}  Bxg4 {[%clk 0:02:28]} 22. Be4 {[%clk 0:00:57]}  Re8 {[%clk 0:02:23]} 23. Bb1 {[%clk 0:00:43]}  Rb2 {[%clk 0:02:17]} 24. f5 {[%clk 0:00:38]}  Bh3 {[%clk 0:02:17]} 25. Rfd1 {[%clk 0:00:35]}  Kg7 {[%clk 0:01:28]} 26. Rh4 {[%clk 0:00:25]}  Rg2+ {[%clk 0:01:14]} 27. Kh1 {[%clk 0:00:24]}  Rge2 {[%clk 0:01:15]} 28. Rxh3 {[%clk 0:00:11]}  Re1+ {[%clk 0:01:15]} 29. Rxe1 {[%clk 0:00:11]}  Rxe1+ {[%clk 0:01:15]} 30. Kg2 {[%clk 0:00:12]}  Rxb1 {[%clk 0:01:16]} 31. fxg6 {[%clk 0:00:12]}  hxg6 {[%clk 0:01:17]} 32. Rd3 {[%clk 0:00:12]}  Rb4 {[%clk 0:01:15]} 33. Rd7 {[%clk 0:00:05]}  a5 {[%clk 0:01:15]} 0-1


[Site "https://www.chess.com"]

[Event "Titled Tuesday Blitz May 30 Early 2023"]
[White "Kilic, Eray"]
[Black "Jimenez Jimenez, Leandro"]
[WhiteFideId "44517173"]
[BlackFideId "6415253"]
[WhiteElo "2328"]
[BlackElo "2296"]
[Result "1-0"]
[Round "01"]
[TimeControl "180+2"]
[Date "2023.05.30"]
[WhiteClock "0:00:34"]
[BlackClock "0:00:00"]

1. e4 {[%clk 0:02:59]}  e5 {[%clk 0:02:59]} 2. Nf3 {[%clk 0:03:00]}  Nc6 {[%clk 0:03:00]} 3. Bb5 {[%clk 0:03:00]}  a6 {[%clk 0:03:00]} 4. Ba4 {[%clk 0:03:00]}  Nf6 {[%clk 0:02:59]} 5. O-O {[%clk 0:03:00]}  b5 {[%clk 0:03:00]} 6. Bb3 {[%clk 0:03:01]}  Bc5 {[%clk 0:03:00]} 7. c3 {[%clk 0:03:01]}  d6 {[%clk 0:03:00]} 8. d4 {[%clk 0:03:01]}  Bb6 {[%clk 0:02:59]} 9. a4 {[%clk 0:03:02]}  Rb8 {[%clk 0:02:58]} 10. a5 {[%clk 0:03:02]}  Ba7 {[%clk 0:02:57]} 11. Re1 {[%clk 0:03:02]}  O-O {[%clk 0:02:50]} 12. h3 {[%clk 0:03:02]}  h6 {[%clk 0:02:50]} 13. Be3 {[%clk 0:02:58]}  Re8 {[%clk 0:02:29]} 14. Nbd2 {[%clk 0:02:56]}  exd4 {[%clk 0:02:29]} 15. cxd4 {[%clk 0:02:57]}  Nb4 {[%clk 0:02:27]} 16. d5 {[%clk 0:02:54]}  Bxe3 {[%clk 0:02:25]} 17. Rxe3 {[%clk 0:02:55]}  c6 {[%clk 0:02:11]} 18. Nf1 {[%clk 0:02:20]}  Bb7 {[%clk 0:02:04]} 19. Qd2 {[%clk 0:02:11]}  c5 {[%clk 0:01:52]} 20. Ng3 {[%clk 0:02:11]}  Bc8 {[%clk 0:01:45]} 21. e5 {[%clk 0:01:40]}  dxe5 {[%clk 0:01:45]} 22. Nxe5 {[%clk 0:01:41]}  Qd6 {[%clk 0:01:40]} 23. Rae1 {[%clk 0:01:39]}  Rd8 {[%clk 0:01:27]} 24. Rf3 {[%clk 0:00:59]}  c4 {[%clk 0:01:05]} 25. Rxf6 {[%clk 0:00:56]}  Qxf6 {[%clk 0:01:02]} 26. Qxb4 {[%clk 0:00:56]}  Rxd5 {[%clk 0:00:31]} 27. Nxc4 {[%clk 0:00:54]}  Bb7 {[%clk 0:00:09]} 28. Nb6 {[%clk 0:00:52]}  Qxb2 {[%clk 0:00:08]} 29. Qf4 {[%clk 0:00:39]}  Qxb3 {[%clk 0:00:05]} 30. Qxb8+ {[%clk 0:00:39]}  Kh7 {[%clk 0:00:05]} 31. Qxb7 {[%clk 0:00:34]}  Rd2 {[%clk 0:00:02]} 32. Qe4+ {[%clk 0:00:33]}  g6 {[%clk 0:00:00]} 33. Qf4 {[%clk 0:00:34]} 1-0


[Site "https://www.chess.com"]

[Event "Titled Tuesday Blitz May 30 Early 2023"]
[White "Sanhueza, Cristian"]
[Black "Djordjevic, Vuk"]
[WhiteFideId "116815"]
[BlackFideId "902098"]
[WhiteElo "2174"]
[BlackElo "2452"]
[Result "0-1"]
[Round "01"]
[TimeControl "180+2"]
[Date "2023.05.30"]
[WhiteClock "0:00:23"]
[BlackClock "0:00:03"]

1. e4 {[%clk 0:03:00]}  d5 {[%clk 0:02:54]} 2. exd5 {[%clk 0:03:00]}  Qxd5 {[%clk 0:02:54]} 3. Nc3 {[%clk 0:03:00]}  Qd6 {[%clk 0:02:52]} 4. d4 {[%clk 0:03:01]}  Nf6 {[%clk 0:02:52]} 5. Nf3 {[%clk 0:03:02]}  c6 {[%clk 0:02:52]} 6. g3 {[%clk 0:03:02]}  Bg4 {[%clk 0:02:53]} 7. Bg2 {[%clk 0:03:03]}  e6 {[%clk 0:02:53]} 8. O-O {[%clk 0:03:03]}  Qd8 {[%clk 0:02:49]} 9. h3 {[%clk 0:03:03]}  Bxf3 {[%clk 0:02:48]} 10. Bxf3 {[%clk 0:03:03]}  Bd6 {[%clk 0:02:42]} 11. Ne4 {[%clk 0:03:03]}  Nxe4 {[%clk 0:02:41]} 12. Bxe4 {[%clk 0:03:03]}  Nd7 {[%clk 0:02:41]} 13. c4 {[%clk 0:02:56]}  O-O {[%clk 0:02:39]} 14. b3 {[%clk 0:02:52]}  e5 {[%clk 0:02:25]} 15. Bb2 {[%clk 0:02:40]}  Re8 {[%clk 0:02:06]} 16. d5 {[%clk 0:02:32]}  Nf6 {[%clk 0:01:43]} 17. Bg2 {[%clk 0:02:32]}  cxd5 {[%clk 0:01:36]} 18. Bxd5 {[%clk 0:02:33]}  Qc7 {[%clk 0:01:22]} 19. Bg2 {[%clk 0:02:18]}  Rad8 {[%clk 0:01:20]} 20. Qe2 {[%clk 0:02:19]}  Bc5 {[%clk 0:00:42]} 21. Rad1 {[%clk 0:02:14]}  Rxd1 {[%clk 0:00:27]} 22. Rxd1 {[%clk 0:02:12]}  h6 {[%clk 0:00:27]} 23. Kh2 {[%clk 0:02:04]}  Qe7 {[%clk 0:00:15]} 24. Qf3 {[%clk 0:01:47]}  e4 {[%clk 0:00:09]} 25. Bxf6 {[%clk 0:01:41]}  exf3 {[%clk 0:00:04]} 26. Bxe7 {[%clk 0:01:41]}  Rxe7 {[%clk 0:00:03]} 27. Bxf3 {[%clk 0:01:41]}  Bxf2 {[%clk 0:00:04]} 28. b4 {[%clk 0:01:33]}  Be3 {[%clk 0:00:03]} 29. Kg2 {[%clk 0:01:32]}  b6 {[%clk 0:00:03]} 30. Rd8+ {[%clk 0:01:30]}  Kh7 {[%clk 0:00:03]} 31. Bd5 {[%clk 0:01:31]}  g6 {[%clk 0:00:03]} 32. Kf3 {[%clk 0:01:29]}  Bd2 {[%clk 0:00:01]} 33. a3 {[%clk 0:01:26]}  Bc1 {[%clk 0:00:01]} 34. c5 {[%clk 0:01:20]}  bxc5 {[%clk 0:00:01]} 35. bxc5 {[%clk 0:01:21]}  Bxa3 {[%clk 0:00:02]} 36. c6 {[%clk 0:01:22]}  Bc5 {[%clk 0:00:02]} 37. Ra8 {[%clk 0:00:54]}  Bb6 {[%clk 0:00:02]} 38. g4 {[%clk 0:00:54]}  Kg7 {[%clk 0:00:02]} 39. h4 {[%clk 0:00:54]}  Re3+ {[%clk 0:00:02]} 40. Kf4 {[%clk 0:00:50]}  Rd3 {[%clk 0:00:03]} 41. Be4 {[%clk 0:00:48]}  Rd4 {[%clk 0:00:03]} 42. Re8 {[%clk 0:00:42]}  Rc4 {[%clk 0:00:03]} 43. Kf3 {[%clk 0:00:38]}  Rc3+ {[%clk 0:00:03]} 44. Kg2 {[%clk 0:00:38]}  Re3 {[%clk 0:00:02]} 45. Re7 {[%clk 0:00:36]}  Kf6 {[%clk 0:00:02]} 46. Re8 {[%clk 0:00:35]}  Rc3 {[%clk 0:00:02]} 47. Bf3 {[%clk 0:00:33]}  Rc4 {[%clk 0:00:03]} 48. Rf8 {[%clk 0:00:32]}  Rc2+ {[%clk 0:00:03]} 49. Kg3 {[%clk 0:00:32]}  Ke7 {[%clk 0:00:03]} 50. Rc8 {[%clk 0:00:31]}  Rc3 {[%clk 0:00:02]} 51. Kg2 {[%clk 0:00:29]}  Rc2+ {[%clk 0:00:02]} 52. Kh1 {[%clk 0:00:27]}  Rc1+ {[%clk 0:00:02]} 53. Kg2 {[%clk 0:00:27]}  Kd6 {[%clk 0:00:02]} 54. Rf8 {[%clk 0:00:25]}  Rc2+ {[%clk 0:00:02]} 55. Kg3 {[%clk 0:00:24]}  Ke6 {[%clk 0:00:02]} 56. g5 {[%clk 0:00:23]}  Bc7+ {[%clk 0:00:02]} 57. Kg4 {[%clk 0:00:23]}  h5+ {[%clk 0:00:02]} 58. Kh3 {[%clk 0:00:23]}  Rh2# {[%clk 0:00:03]} 0-1


[Site "https://www.chess.com"]